{"text_format":"1","workbook":"xlsx","n_sheets":2,"sheets":["Sheet1","Sheet2"],"not_rendered":{"charts":0,"images":0,"macros":1,"external_links":0,"defined_names":0,"comments":0,"pivot_tables":0},"unopened":[],"bounds":{"document_bytes":16777216,"sheet_cells":100000,"rows_first":2000,"rows_last":500,"rows_between":2000,"halvings":0,"cell_chars":16384,"cell_head_chars":4096},"cells_cut":0,"cells_raw":0,"read":"whole","date_system":"1900"}

{"sheet":"Sheet1","index":0,"n_rows":231,"n_cols":4,"rows_kept":231,"cut":false,"hidden":false,"merged":[]}
["Dosya Adı","AD","Türkçe"]
["401(k) calculator1.xlsx","(k) calculator","(K) Hesaplayıcı",{"$f":"\"INSERT INTO excelsizeyeter_dosyalari VALUES ('','\"&C2&\"','\"&A2&\"');\"","v":"INSERT INTO excelsizeyeter_dosyalari VALUES ('','(K) Hesaplayıcı','401(k) calculator1.xlsx');"}]
["Academic calendar (any year)1.xlsx","Academic calendar (any year)","Akademik Takvim (Herhangi Yılı)",{"$f":"\"INSERT INTO excelsizeyeter_dosyalari VALUES ('','\"&C3&\"','\"&A3&\"');\"","v":"INSERT INTO excelsizeyeter_dosyalari VALUES ('','Akademik Takvim (Herhangi Yılı)','Academic calendar (any year)1.xlsx');"}]
["Accounts receivable aging report1.xlsx","Accounts receivable aging report","Alacak Hesapları Yaşlanma Raporu","INSERT INTO excelsizeyeter_dosyalari VALUES ('','Alacak Hesapları Yaşlanma Raporu','Accounts receivable aging report1.xlsx');"]
["Receiving report1.xlsx","Receiving report","Alma Raporu","INSERT INTO excelsizeyeter_dosyalari VALUES ('','Alma Raporu','Receiving report1.xlsx');"]
["Depreciation methods comparison1.xlsx","Depreciation methods comparison","Amortisman Yöntemleri Karşılaştırma","INSERT INTO excelsizeyeter_dosyalari VALUES ('','Amortisman Yöntemleri Karşılaştırma','Depreciation methods comparison1.xlsx');"]
["Home contents inventory list1.xlsx","Home contents inventory list","Ana İçeriği Envanter Listesi","INSERT INTO excelsizeyeter_dosyalari VALUES ('','Ana İçeriği Envanter Listesi','Home contents inventory list1.xlsx');"]
["Chore payment schedule1.xlsx","Chore payment schedule","Angarya Ödeme Planı","INSERT INTO excelsizeyeter_dosyalari VALUES ('','Angarya Ödeme Planı','Chore payment schedule1.xlsx');"]
["Car lease vs.xlsx","Car lease vs","Araba Kiralama Vs","INSERT INTO excelsizeyeter_dosyalari VALUES ('','Araba Kiralama Vs','Car lease vs.xlsx');"]
["Vehicle loan payment calculator1.xlsx","Vehicle loan payment calculator","Araç Kredi Ödeme Hesap Makinesi","INSERT INTO excelsizeyeter_dosyalari VALUES ('','Araç Kredi Ödeme Hesap Makinesi','Vehicle loan payment calculator1.xlsx');"]
["Assignment schedule1.xlsx","Assignment schedule","Atama Takvimi","INSERT INTO excelsizeyeter_dosyalari VALUES ('','Atama Takvimi','Assignment schedule1.xlsx');"]
["Sales seasonality by month1.xlsx","Sales seasonality by month","Aya Göre Satış Mevsimsellik","INSERT INTO excelsizeyeter_dosyalari VALUES ('','Aya Göre Satış Mevsimsellik','Sales seasonality by month1.xlsx');"]
["Adjustable meeting agenda1.xlsx","Adjustable meeting agenda","Ayarlanabilir Toplantı Gündemi","INSERT INTO excelsizeyeter_dosyalari VALUES ('','Ayarlanabilir Toplantı Gündemi','Adjustable meeting agenda1.xlsx');"]
["Monthly bank reconciliation1.xlsx","Monthly bank reconciliation","Aylık Banka Uzlaşma","INSERT INTO excelsizeyeter_dosyalari VALUES ('','Aylık Banka Uzlaşma','Monthly bank reconciliation1.xlsx');"]
["Quarterly budget analysis1.xlsx","Quarterly budget analysis","Aylık Bütçe Analizi","INSERT INTO excelsizeyeter_dosyalari VALUES ('','Aylık Bütçe Analizi','Quarterly budget analysis1.xlsx');"]
["Monthly budget plan and analysis1.xlsx","Monthly budget plan and analysis","Aylık Bütçe Planı Ve Analizi","INSERT INTO excelsizeyeter_dosyalari VALUES ('','Aylık Bütçe Planı Ve Analizi','Monthly budget plan and analysis1.xlsx');"]
["Monthly inventory and gross profit tracker1.xlsx","Monthly inventory and gross profit tracker","Aylık Envanter Ve Brüt Kar İzci","INSERT INTO excelsizeyeter_dosyalari VALUES ('','Aylık Envanter Ve Brüt Kar İzci','Monthly inventory and gross profit tracker1.xlsx');"]
["Monthly household expenses1.xlsx","Monthly household expenses","Aylık Hanehalkı Harcama","INSERT INTO excelsizeyeter_dosyalari VALUES ('','Aylık Hanehalkı Harcama','Monthly household expenses1.xlsx');"]
["40 month financial projection1.xlsx"," month financial projection","Aylık Mali Projeksiyon","INSERT INTO excelsizeyeter_dosyalari VALUES ('','Aylık Mali Projeksiyon','40 month financial projection1.xlsx');"]
["Quarterly cash flow projection1.xlsx","Quarterly cash flow projection","Aylık Nakit Akış Projeksiyonu","INSERT INTO excelsizeyeter_dosyalari VALUES ('','Aylık Nakit Akış Projeksiyonu','Quarterly cash flow projection1.xlsx');"]
["Monthly sales projections1.xlsx","Monthly sales projections","Aylık Satış Projeksiyonları","INSERT INTO excelsizeyeter_dosyalari VALUES ('','Aylık Satış Projeksiyonları','Monthly sales projections1.xlsx');"]
["24 month sales forecast1.xlsx"," month sales forecast","Aylık Satış Tahmini","INSERT INTO excelsizeyeter_dosyalari VALUES ('','Aylık Satış Tahmini','24 month sales forecast1.xlsx');"]
["36 month sales forecast1.xlsx"," month sales forecast","Aylık Satış Tahmini","INSERT INTO excelsizeyeter_dosyalari VALUES ('','Aylık Satış Tahmini','36 month sales forecast1.xlsx');"]
["Detailed revenue plan1.xlsx","Detailed revenue plan","Ayrıntılı Gelir Planı","INSERT INTO excelsizeyeter_dosyalari VALUES ('','Ayrıntılı Gelir Planı','Detailed revenue plan1.xlsx');"]
["Backorder control1.xlsx","Backorder control","Backorder Kontrolü","INSERT INTO excelsizeyeter_dosyalari VALUES ('','Backorder Kontrolü','Backorder control1.xlsx');"]
["Budget for fundraiser event1.xlsx","Budget for fundraiser event","Bağış Olayı İçin Bütçe","INSERT INTO excelsizeyeter_dosyalari VALUES ('','Bağış Olayı İçin Bütçe','Budget for fundraiser event1.xlsx');"]
["Garden planner1.xlsx","Garden planner","Bahçe Planlayıcısı","INSERT INTO excelsizeyeter_dosyalari VALUES ('','Bahçe Planlayıcısı','Garden planner1.xlsx');"]
["Balloon loan payment calculator1.xlsx","Balloon loan payment calculator","Balon Kredi Ödeme Hesap Makinesi","INSERT INTO excelsizeyeter_dosyalari VALUES ('','Balon Kredi Ödeme Hesap Makinesi','Balloon loan payment calculator1.xlsx');"]
["Simple monthly budget1.xlsx","Simple monthly budget","Basit Aylık Bütçe","INSERT INTO excelsizeyeter_dosyalari VALUES ('','Basit Aylık Bütçe','Simple monthly budget1.xlsx');"]
["Simple expense budget1.xlsx","Simple expense budget","Basit Gider Bütçesi","INSERT INTO excelsizeyeter_dosyalari VALUES ('','Basit Gider Bütçesi','Simple expense budget1.xlsx');"]
["Break-even analysis1.xlsx","Breakeven analysis","Başabaş Analizi","INSERT INTO excelsizeyeter_dosyalari VALUES ('','Başabaş Analizi','Break-even analysis1.xlsx');"]
["Break-even analysis(2)1.xlsx","Breakeven analysis","Başabaş Analizi ","INSERT INTO excelsizeyeter_dosyalari VALUES ('','Başabaş Analizi ','Break-even analysis(2)1.xlsx');"]
["Break-even analysis(3)1.xlsx","Breakeven analysis","Başabaş Analizi ","INSERT INTO excelsizeyeter_dosyalari VALUES ('','Başabaş Analizi ','Break-even analysis(3)1.xlsx');"]
["Break-even chart1.xlsx","Breakeven chart","Başabaş Grafiği","INSERT INTO excelsizeyeter_dosyalari VALUES ('','Başabaş Grafiği','Break-even chart1.xlsx');"]
["Startup expenses1.xlsx","Startup expenses","Başlangıç ​​Giderleri","INSERT INTO excelsizeyeter_dosyalari VALUES ('','Başlangıç ​​Giderleri','Startup expenses1.xlsx');"]
["Startup sales plan1.xlsx","Startup sales plan","Başlangıç ​​Satış Planı","INSERT INTO excelsizeyeter_dosyalari VALUES ('','Başlangıç ​​Satış Planı','Startup sales plan1.xlsx');"]
["Expected commercial value calculator - product profitability analysis1.xlsx","Expected commercial value calculator product profitability analysis","Beklenen Ticari Değeri Hesap Makinesi Ürün Karlılık Analizi","INSERT INTO excelsizeyeter_dosyalari VALUES ('','Beklenen Ticari Değeri Hesap Makinesi Ürün Karlılık Analizi','Expected commercial value calculator - product profitability analysis1.xlsx');"]
["Balance sheet1.xlsx","Balance sheet","Bilanço","INSERT INTO excelsizeyeter_dosyalari VALUES ('','Bilanço','Balance sheet1.xlsx');"]
["Macroeconomic model of a national economy1.xlsx","Macroeconomic model of a national economy","Bir Ulusal Ekonominin Makroekonomik Modeli","INSERT INTO excelsizeyeter_dosyalari VALUES ('','Bir Ulusal Ekonominin Makroekonomik Modeli','Macroeconomic model of a national economy1.xlsx');"]
["Price elasticity for multiple interacting products1.xlsx","Price elasticity for multiple interacting products","Birden Fazla Etkileşim Ürünler İçin Fiyat Esnekliği","INSERT INTO excelsizeyeter_dosyalari VALUES ('','Birden Fazla Etkileşim Ürünler İçin Fiyat Esnekliği','Price elasticity for multiple interacting products1.xlsx');"]
["Biweekly time sheet1.xlsx","Biweekly time sheet","Biweekly Kartela","INSERT INTO excelsizeyeter_dosyalari VALUES ('','Biweekly Kartela','Biweekly time sheet1.xlsx');"]
["Payroll calculator1.xlsx","Payroll calculator","Bordro Hesap Makinesi","INSERT INTO excelsizeyeter_dosyalari VALUES ('','Bordro Hesap Makinesi','Payroll calculator1.xlsx');"]
["Budget summary report1.xlsx","Budget summary report","Bütçe Özeti Raporu","INSERT INTO excelsizeyeter_dosyalari VALUES ('','Bütçe Özeti Raporu','Budget summary report1.xlsx');"]
["Capitalization table1.xlsx","Capitalization table","Büyük Harf Tablosu","INSERT INTO excelsizeyeter_dosyalari VALUES ('','Büyük Harf Tablosu','Capitalization table1.xlsx');"]
["Continental rotating shift schedule1.xlsx","Continental rotating shift schedule","Continental Dönen Vardiya Çizelgesi","INSERT INTO excelsizeyeter_dosyalari VALUES ('','Continental Dönen Vardiya Çizelgesi','Continental rotating shift schedule1.xlsx');"]
["Employee change record1.xlsx","Employee change record","Çalışan Değişiklik Rekor","INSERT INTO excelsizeyeter_dosyalari VALUES ('','Çalışan Değişiklik Rekor','Employee change record1.xlsx');"]
["Employee attendance tracker1.xlsx","Employee attendance tracker","Çalışan Devam Tracker","INSERT INTO excelsizeyeter_dosyalari VALUES ('','Çalışan Devam Tracker','Employee attendance tracker1.xlsx');"]
["Employee equipment inventory1.xlsx","Employee equipment inventory","Çalışan Ekipman Envanteri","INSERT INTO excelsizeyeter_dosyalari VALUES ('','Çalışan Ekipman Envanteri','Employee equipment inventory1.xlsx');"]
["Employee time sheet (weekly, monthly, yearly)1.xlsx","Employee time sheet (weekly, monthly, yearly)","Çalışan Kartela (Haftalık, Aylık, Yıllık)","INSERT INTO excelsizeyeter_dosyalari VALUES ('','Çalışan Kartela (Haftalık, Aylık, Yıllık)','Employee time sheet (weekly, monthly, yearly)1.xlsx');"]
["Employee orientation1.xlsx","Employee orientation","Çalışan Oryantasyon","INSERT INTO excelsizeyeter_dosyalari VALUES ('','Çalışan Oryantasyon','Employee orientation1.xlsx');"]
["Employee self-evaluation1.xlsx","Employee selfevaluation","Çalışan Özdeğerlendirme","INSERT INTO excelsizeyeter_dosyalari VALUES ('','Çalışan Özdeğerlendirme','Employee self-evaluation1.xlsx');"]
["Employee performance review1.xlsx","Employee performance review","Çalışan Performans Değerlendirmesi","INSERT INTO excelsizeyeter_dosyalari VALUES ('','Çalışan Performans Değerlendirmesi','Employee performance review1.xlsx');"]
["Employee profile.xlsx","Employee profile","Çalışan Profili","INSERT INTO excelsizeyeter_dosyalari VALUES ('','Çalışan Profili','Employee profile.xlsx');"]
["Headcount analysis1.xlsx","Headcount analysis","Çalışan Sayısı Analizi","INSERT INTO excelsizeyeter_dosyalari VALUES ('','Çalışan Sayısı Analizi','Headcount analysis1.xlsx');"]
["Employee timecard1.xlsx","Employee timecard","Çalışan Timecard","INSERT INTO excelsizeyeter_dosyalari VALUES ('','Çalışan Timecard','Employee timecard1.xlsx');"]
["Employee timecard (daily, weekly, monthly, and yearly)1.xlsx","Employee timecard (daily, weekly, monthly, and yearly)","Çalışan Timecard (Günlük, Haftalık, Aylık Ve Yıllık)","INSERT INTO excelsizeyeter_dosyalari VALUES ('','Çalışan Timecard (Günlük, Haftalık, Aylık Ve Yıllık)','Employee timecard (daily, weekly, monthly, and yearly)1.xlsx');"]
["Employee shift schedule1.xlsx","Employee shift schedule","Çalışan Vardiya Çizelgesi","INSERT INTO excelsizeyeter_dosyalari VALUES ('','Çalışan Vardiya Çizelgesi','Employee shift schedule1.xlsx');"]
["Employee shift schedule(2)1.xlsx","Employee shift schedule","Çalışan Vardiya Çizelgesi ","INSERT INTO excelsizeyeter_dosyalari VALUES ('','Çalışan Vardiya Çizelgesi ','Employee shift schedule(2)1.xlsx');"]
["Employee shift schedule(3)1.xlsx","Employee shift schedule","Çalışan Vardiya Çizelgesi ","INSERT INTO excelsizeyeter_dosyalari VALUES ('','Çalışan Vardiya Çizelgesi ','Employee shift schedule(3)1.xlsx');"]
["Employee absence tracker1.xlsx","Employee absence tracker","Çalışan Yokluğu İzci","INSERT INTO excelsizeyeter_dosyalari VALUES ('','Çalışan Yokluğu İzci','Employee absence tracker1.xlsx');"]
["Employee absence schedule1.xlsx","Employee absence schedule","Çalışan Yokluğu Programı","INSERT INTO excelsizeyeter_dosyalari VALUES ('','Çalışan Yokluğu Programı','Employee absence schedule1.xlsx');"]
["Breakeven analysis with charts1.xlsx","Breakeven analysis with charts","Çizelgeleri İle Başabaş Analizi","INSERT INTO excelsizeyeter_dosyalari VALUES ('','Çizelgeleri İle Başabaş Analizi','Breakeven analysis with charts1.xlsx');"]
["Consulting pricing worksheet - FeePricing Analysis1.xlsx","Consulting pricing worksheet FeePricing Analysis","Danışmanlık Fiyatlandırma Çalışma Feepricing Analizi","INSERT INTO excelsizeyeter_dosyalari VALUES ('','Danışmanlık Fiyatlandırma Çalışma Feepricing Analizi','Consulting pricing worksheet - FeePricing Analysis1.xlsx');"]
["DDNNOO rotating shift schedule1.xlsx","DDNNOO rotating shift schedule","Ddnnoo Dönen Vardiya Çizelgesi","INSERT INTO excelsizeyeter_dosyalari VALUES ('','Ddnnoo Dönen Vardiya Çizelgesi','DDNNOO rotating shift schedule1.xlsx');"]
["General ledger1.xlsx","General ledger","Defteri Kebir","INSERT INTO excelsizeyeter_dosyalari VALUES ('','Defteri Kebir','General ledger1.xlsx');"]
["Warehouse inventory1.xlsm","Warehouse inventory","Depo Envanter","INSERT INTO excelsizeyeter_dosyalari VALUES ('','Depo Envanter','Warehouse inventory1.xlsm');"]
["Detailed sales pipeline management1.xlsx","Detailed sales pipeline management","Detaylı Satış Boru Hattı Yönetim",{"$f":"\"INSERT INTO excelsizeyeter_dosyalari VALUES ('','\"&C67&\"','\"&A67&\"');\"","v":"INSERT INTO excelsizeyeter_dosyalari VALUES ('','Detaylı Satış Boru Hattı Yönetim','Detailed sales pipeline management1.xlsx');"}]
["Detailed sales forecast1.xlsx","Detailed sales forecast","Detaylı Satış Tahmini","INSERT INTO excelsizeyeter_dosyalari VALUES ('','Detaylı Satış Tahmini','Detailed sales forecast1.xlsx');"]
["DNO rotating sift schedule1.xlsx","DNO rotating sift schedule","Dno Takvimi Elemek Dönen","INSERT INTO excelsizeyeter_dosyalari VALUES ('','Dno Takvimi Elemek Dönen','DNO rotating sift schedule1.xlsx');"]
["Direct marketing analysis1.xlsx","Direct marketing analysis","Doğrudan Pazarlama Analizi","INSERT INTO excelsizeyeter_dosyalari VALUES ('','Doğrudan Pazarlama Analizi','Direct marketing analysis1.xlsx');"]
["2-2 3-2 2-3 Rotating shift schedule1.xlsx"," Rotating shift schedule","Döner Vardiya Çizelgesi","INSERT INTO excelsizeyeter_dosyalari VALUES ('','Döner Vardiya Çizelgesi','2-2 3-2 2-3 Rotating shift schedule1.xlsx');"]
["Dupont rotating shift schedule1.xlsx","Dupont rotating shift schedule","Dupont Dönen Vardiya Çizelgesi","INSERT INTO excelsizeyeter_dosyalari VALUES ('','Dupont Dönen Vardiya Çizelgesi','Dupont rotating shift schedule1.xlsx');"]
["Fixed asset record with straight line depreciation1.xlsx","Fixed asset record with straight line depreciation","Düz Çizgi Amortisman İle Sabit Kıymet Kayıt","INSERT INTO excelsizeyeter_dosyalari VALUES ('','Düz Çizgi Amortisman İle Sabit Kıymet Kayıt','Fixed asset record with straight line depreciation1.xlsx');"]
["Educational credits and reimbursement tracker1.xlsx","Educational credits and reimbursement tracker","Eğitim Kredisi Ve Geri Ödeme İzci","INSERT INTO excelsizeyeter_dosyalari VALUES ('','Eğitim Kredisi Ve Geri Ödeme İzci','Educational credits and reimbursement tracker1.xlsx');"]
["Equipment inventory list1.xlsx","Equipment inventory list","Ekipman Envanter Listesi","INSERT INTO excelsizeyeter_dosyalari VALUES ('','Ekipman Envanter Listesi','Equipment inventory list1.xlsx');"]
["Equipment inventory and depreciation schedule1.xlsx","Equipment inventory and depreciation schedule","Ekipman Envanter Ve Amortisman Programı","INSERT INTO excelsizeyeter_dosyalari VALUES ('','Ekipman Envanter Ve Amortisman Programı','Equipment inventory and depreciation schedule1.xlsx');"]
["Equipment list1.xlsm","Equipment list","Ekipman Listesi","INSERT INTO excelsizeyeter_dosyalari VALUES ('','Ekipman Listesi','Equipment list1.xlsm');"]
["Retirement financial planner1.xlsx","Retirement financial planner","Emekli Mali Planlayıcısı","INSERT INTO excelsizeyeter_dosyalari VALUES ('','Emekli Mali Planlayıcısı','Retirement financial planner1.xlsx');"]
["Inventory list(2)1.xlsx","Inventory list","Envanter Listesi ","INSERT INTO excelsizeyeter_dosyalari VALUES ('','Envanter Listesi ','Inventory list(2)1.xlsx');"]
["Deferred tax rate calculator1.xlsx","Deferred tax rate calculator","Ertelenmiş Vergi Oranı Hesap","INSERT INTO excelsizeyeter_dosyalari VALUES ('','Ertelenmiş Vergi Oranı Hesap','Deferred tax rate calculator1.xlsx');"]
["Flexible balance sheet1.xlsx","Flexible balance sheet","Esnek Bilanço","INSERT INTO excelsizeyeter_dosyalari VALUES ('','Esnek Bilanço','Flexible balance sheet1.xlsx');"]
["Event schedule1.xlsx","Event schedule","Etkinlik Programı","INSERT INTO excelsizeyeter_dosyalari VALUES ('','Etkinlik Programı','Event schedule1.xlsx');"]
["Home inventory1.xlsx","Home inventory","Ev Envanter","INSERT INTO excelsizeyeter_dosyalari VALUES ('','Ev Envanter','Home inventory1.xlsx');"]
["Inventory of home contents1.xlsx","Inventory of home contents","Ev İçeriğinin Envanteri","INSERT INTO excelsizeyeter_dosyalari VALUES ('','Ev İçeriğinin Envanteri','Inventory of home contents1.xlsx');"]
["Activity ratios report1.xlsx","Activity ratios report","Faaliyet Oranları Rapor","INSERT INTO excelsizeyeter_dosyalari VALUES ('','Faaliyet Oranları Rapor','Activity ratios report1.xlsx');"]
["Finance charge (Simple Lines design)1.xlsx","Finance charge (Simple Lines design)","Finans Ücret (Basit Hatları Tasarım)","INSERT INTO excelsizeyeter_dosyalari VALUES ('','Finans Ücret (Basit Hatları Tasarım)','Finance charge (Simple Lines design)1.xlsx');"]
["Finance charge (Simple Blue design)1.xlsx","Finance charge (Simple Blue design)","Finans Ücret (Basit Mavi Tasarım)","INSERT INTO excelsizeyeter_dosyalari VALUES ('','Finans Ücret (Basit Mavi Tasarım)','Finance charge (Simple Blue design)1.xlsx');"]
["Financial calculator1.xlsx","Financial calculator","Finansal Hesap Makinesi","INSERT INTO excelsizeyeter_dosyalari VALUES ('','Finansal Hesap Makinesi','Financial calculator1.xlsx');"]
["Financial toys1.xlsx","Financial toys","Finansal Oyuncaklar","INSERT INTO excelsizeyeter_dosyalari VALUES ('','Finansal Oyuncaklar','Financial toys1.xlsx');"]
["Financial forecast analysis (8 years)1.xlsx","Financial forecast analysis ( years)","Finansal Tahmin Analizi (Yıl)","INSERT INTO excelsizeyeter_dosyalari VALUES ('','Finansal Tahmin Analizi (Yıl)','Financial forecast analysis (8 years)1.xlsx');"]
["Invoice with finance charge1.xlsx","Invoice with finance charge","Finansman Gideri İle Fatura","INSERT INTO excelsizeyeter_dosyalari VALUES ('','Finansman Gideri İle Fatura','Invoice with finance charge1.xlsx');"]
["Invoice with finance charge (simple)1.xlsx","Invoice with finance charge (simple)","Finansman Gideri İle Fatura (Basit)","INSERT INTO excelsizeyeter_dosyalari VALUES ('','Finansman Gideri İle Fatura (Basit)','Invoice with finance charge (simple)1.xlsx');"]
["Price line sales projections1.xlsx","Price line sales projections","Fiyat Hat Satış Projeksiyonları","INSERT INTO excelsizeyeter_dosyalari VALUES ('','Fiyat Hat Satış Projeksiyonları','Price line sales projections1.xlsx');"]
["Pregnancy calendar1.xlsx","Pregnancy calendar","Gebelik Takvimi","INSERT INTO excelsizeyeter_dosyalari VALUES ('','Gebelik Takvimi','Pregnancy calendar1.xlsx');"]
["Revenue forecast1.xlsx","Revenue forecast","Gelir Beklentisi","INSERT INTO excelsizeyeter_dosyalari VALUES ('','Gelir Beklentisi','Revenue forecast1.xlsx');"]
["Income statement1.xlsx","Income statement","Gelir Tablosu","INSERT INTO excelsizeyeter_dosyalari VALUES ('','Gelir Tablosu','Income statement1.xlsx');"]
["Income statement 1 year1.xlsx","Income statement year","Gelir Tablosu Yıl","INSERT INTO excelsizeyeter_dosyalari VALUES ('','Gelir Tablosu Yıl','Income statement 1 year1.xlsx');"]
["Revenue forecast(2)1.xlsx","Revenue forecast","Gelir Tahmini ","INSERT INTO excelsizeyeter_dosyalari VALUES ('','Gelir Tahmini ','Revenue forecast(2)1.xlsx');"]
["Dashboard1.xlsx","Dashboard","Gösterge Paneli","INSERT INTO excelsizeyeter_dosyalari VALUES ('','Gösterge Paneli','Dashboard1.xlsx');"]
["Daily infant schedule and weight tracker1.xlsx","Daily infant schedule and weight tracker","Günlük Bebek Çizelgesi Ve Ağırlık İzci","INSERT INTO excelsizeyeter_dosyalari VALUES ('','Günlük Bebek Çizelgesi Ve Ağırlık İzci','Daily infant schedule and weight tracker1.xlsx');"]
["Daily work schedule1.xlsx","Daily work schedule","Günlük Çalışma Takvimi","INSERT INTO excelsizeyeter_dosyalari VALUES ('','Günlük Çalışma Takvimi','Daily work schedule1.xlsx');"]
["Daily time sheet1.xlsx","Daily time sheet","Günlük Kartela","INSERT INTO excelsizeyeter_dosyalari VALUES ('','Günlük Kartela','Daily time sheet1.xlsx');"]
["Daily schedule1.xlsx","Daily schedule","Günlük Program","INSERT INTO excelsizeyeter_dosyalari VALUES ('','Günlük Program','Daily schedule1.xlsx');"]
["Daily appointment calendar1.xlsx","Daily appointment calendar","Günlük Randevu Takvimi","INSERT INTO excelsizeyeter_dosyalari VALUES ('','Günlük Randevu Takvimi','Daily appointment calendar1.xlsx');"]
["Daily sales report1.xlsx","Daily sales report","Günlük Satış Raporu","INSERT INTO excelsizeyeter_dosyalari VALUES ('','Günlük Satış Raporu','Daily sales report1.xlsx');"]
["Daily time sheet - services rendered1.xlsx","Daily time sheet services rendered","Günlük Zaman Çizelgenin Sunulan Hizmetler","INSERT INTO excelsizeyeter_dosyalari VALUES ('','Günlük Zaman Çizelgenin Sunulan Hizmetler','Daily time sheet - services rendered1.xlsx');"]
["52 week sales record1.xlsx"," week sales record","Hafta Satış Rekoru","INSERT INTO excelsizeyeter_dosyalari VALUES ('','Hafta Satış Rekoru','52 week sales record1.xlsx');"]
["Weekly chore schedule1.xlsx","Weekly chore schedule","Haftalık Angarya Programı","INSERT INTO excelsizeyeter_dosyalari VALUES ('','Haftalık Angarya Programı','Weekly chore schedule1.xlsx');"]
["Weekly employee shift schedule1.xlsx","Weekly employee shift schedule","Haftalık Çalışan Vardiya Çizelgesi","INSERT INTO excelsizeyeter_dosyalari VALUES ('','Haftalık Çalışan Vardiya Çizelgesi','Weekly employee shift schedule1.xlsx');"]
["Weekly class schedule1.xlsx","Weekly class schedule","Haftalık Ders Programı","INSERT INTO excelsizeyeter_dosyalari VALUES ('','Haftalık Ders Programı','Weekly class schedule1.xlsx');"]
["Weekly college schedule1.xlsm","Weekly college schedule","Haftalık Üniversite Programı","INSERT INTO excelsizeyeter_dosyalari VALUES ('','Haftalık Üniversite Programı','Weekly college schedule1.xlsm');"]
["Weekly time sheet (8 12 x 11, portrait)1.xlsx","Weekly time sheet ( x , portrait)","Haftalık Zaman Levha (X, Portre)","INSERT INTO excelsizeyeter_dosyalari VALUES ('','Haftalık Zaman Levha (X, Portre)','Weekly time sheet (8 12 x 11, portrait)1.xlsx');"]
["Weekly time sheet (8 12 x 11, landscape)1.xlsx","Weekly time sheet ( x , landscape)","Haftalık Zaman Levha (X, Yatay)","INSERT INTO excelsizeyeter_dosyalari VALUES ('','Haftalık Zaman Levha (X, Yatay)','Weekly time sheet (8 12 x 11, landscape)1.xlsx');"]
["Disbursement report1.xlsx","Disbursement report","Harcama Raporu","INSERT INTO excelsizeyeter_dosyalari VALUES ('','Harcama Raporu','Disbursement report1.xlsx');"]
["Biweekly time sheet with sick leave and vacation1.xlsx","Biweekly time sheet with sick leave and vacation","Hastalık İzni Ve Tatil İle İki Haftada Bir Kartela","INSERT INTO excelsizeyeter_dosyalari VALUES ('','Hastalık İzni Ve Tatil İle İki Haftada Bir Kartela','Biweekly time sheet with sick leave and vacation1.xlsx');"]
["Biweekly time sheet with sick leave and vacation(2)1.xlsx","Biweekly time sheet with sick leave and vacation","Hastalık İzni Ve Tatil İle İki Haftada Bir Zaman Çizelgesi ","INSERT INTO excelsizeyeter_dosyalari VALUES ('','Hastalık İzni Ve Tatil İle İki Haftada Bir Zaman Çizelgesi ','Biweekly time sheet with sick leave and vacation(2)1.xlsx');"]
["Project plan for law firms1.xlsx","Project plan for law firms","Hukuk Firmaları İçin Proje Planı","INSERT INTO excelsizeyeter_dosyalari VALUES ('','Hukuk Firmaları İçin Proje Planı','Project plan for law firms1.xlsx');"]
["Approval to hire request1.xlsx","Approval to hire request","Isteği İşe Onay","INSERT INTO excelsizeyeter_dosyalari VALUES ('','Isteği İşe Onay','Approval to hire request1.xlsx');"]
["Business unit financial plan1.xlsx","Business unit financial plan","Iş Birimi Mali Plan","INSERT INTO excelsizeyeter_dosyalari VALUES ('','Iş Birimi Mali Plan','Business unit financial plan1.xlsx');"]
["Medication schedule1.xlsx","Medication schedule","İlaç Programı","INSERT INTO excelsizeyeter_dosyalari VALUES ('','İlaç Programı','Medication schedule1.xlsx');"]
["Discounted cash flow model1.xlsx","Discounted cash flow model","İndirgenmiş Nakit Akış Modeli","INSERT INTO excelsizeyeter_dosyalari VALUES ('','İndirgenmiş Nakit Akış Modeli','Discounted cash flow model1.xlsx');"]
["Human Resources (HR) dashboard.xlsx","Human Resources (HR) dashboard","İnsan Kaynakları (İk) Pano","INSERT INTO excelsizeyeter_dosyalari VALUES ('','İnsan Kaynakları (İk) Pano','Human Resources (HR) dashboard.xlsx');"]
["Annuity investment calculator1.xlsx","Annuity investment calculator","İrat Yatırım Hesap Makinesi","INSERT INTO excelsizeyeter_dosyalari VALUES ('','İrat Yatırım Hesap Makinesi','Annuity investment calculator1.xlsx');"]
["Employment candidate organizer and scoring1.xlsx","Employment candidate organizer and scoring","İstihdam Aday Organizatör Ve Puanlama","INSERT INTO excelsizeyeter_dosyalari VALUES ('','İstihdam Aday Organizatör Ve Puanlama','Employment candidate organizer and scoring1.xlsx');"]
["Employment opportunity tracking and scoring1.xlsx","Employment opportunity tracking and scoring","İstihdam Fırsat İzleme Ve Puanlama","INSERT INTO excelsizeyeter_dosyalari VALUES ('','İstihdam Fırsat İzleme Ve Puanlama','Employment opportunity tracking and scoring1.xlsx');"]
["Business expense budget1.xlsx","Business expense budget","İş Gider Bütçesi","INSERT INTO excelsizeyeter_dosyalari VALUES ('','İş Gider Bütçesi','Business expense budget1.xlsx');"]
["Business loan approval analysis (loan tree)1.xlsx","Business loan approval analysis (loan tree)","İş Kredi Onayı Analizi (Kredi Ağacı)","INSERT INTO excelsizeyeter_dosyalari VALUES ('','İş Kredi Onayı Analizi (Kredi Ağacı)','Business loan approval analysis (loan tree)1.xlsx');"]
["Business model calculator1.xlsx","Business model calculator","İş Modeli Hesap Makinesi","INSERT INTO excelsizeyeter_dosyalari VALUES ('','İş Modeli Hesap Makinesi','Business model calculator1.xlsx');"]
["Business plan sample1.xlsx","Business plan sample","İş Planı Örneği","INSERT INTO excelsizeyeter_dosyalari VALUES ('','İş Planı Örneği','Business plan sample1.xlsx');"]
["Calorie amortization schedule1.xlsx","Calorie amortization schedule","Kalori İtfa Programı","INSERT INTO excelsizeyeter_dosyalari VALUES ('','Kalori İtfa Programı','Calorie amortization schedule1.xlsx');"]
["Channel partner scorecard1.xlsx","Channel partner scorecard","Kanal Ortağı Karnesi",{"$f":"\"INSERT INTO excelsizeyeter_dosyalari VALUES ('','\"&C131&\"','\"&A131&\"');\"","v":"INSERT INTO excelsizeyeter_dosyalari VALUES ('','Kanal Ortağı Karnesi','Channel partner scorecard1.xlsx');"}]
["Comprehensive ratio analysis1.xlsx","Comprehensive ratio analysis","Kapsamlı Oran Analizi","INSERT INTO excelsizeyeter_dosyalari VALUES ('','Kapsamlı Oran Analizi','Comprehensive ratio analysis1.xlsx');"]
["Profit loss statement1.xlsx","Profit loss statement","Kar Zarar Tablosu","INSERT INTO excelsizeyeter_dosyalari VALUES ('','Kar Zarar Tablosu','Profit loss statement1.xlsx');"]
["Shipping order1.xlsx","Shipping order","Kargo Sipariş","INSERT INTO excelsizeyeter_dosyalari VALUES ('','Kargo Sipariş','Shipping order1.xlsx');"]
["Present value calculator of mixed cash flow streams1.xlsx","Present value calculator of mixed cash flow streams","Karışık Nakit Akışlarının Bugünkü Değeri Hesap Makinesi","INSERT INTO excelsizeyeter_dosyalari VALUES ('','Karışık Nakit Akışlarının Bugünkü Değeri Hesap Makinesi','Present value calculator of mixed cash flow streams1.xlsx');"]
["Profitability ratios1.xlsx","Profitability ratios","Karlılık Oranları","INSERT INTO excelsizeyeter_dosyalari VALUES ('','Karlılık Oranları','Profitability ratios1.xlsx');"]
["Comparative balance sheet1.xlsx","Comparative balance sheet","Karşılaştırmalı Bilanço","INSERT INTO excelsizeyeter_dosyalari VALUES ('','Karşılaştırmalı Bilanço','Comparative balance sheet1.xlsx');"]
["Comparative contribution analysis1.xlsx","Comparative contribution analysis","Karşılaştırmalı Katkı Analizi","INSERT INTO excelsizeyeter_dosyalari VALUES ('','Karşılaştırmalı Katkı Analizi','Comparative contribution analysis1.xlsx');"]
["Comparative earnings analysis1.xlsx","Comparative earnings analysis","Karşılaştırmalı Kazançlar Analizi","INSERT INTO excelsizeyeter_dosyalari VALUES ('','Karşılaştırmalı Kazançlar Analizi','Comparative earnings analysis1.xlsx');"]
["Comparative taxable income1.xlsx","Comparative taxable income","Karşılaştırmalı Vergiye Tabi Gelir","INSERT INTO excelsizeyeter_dosyalari VALUES ('','Karşılaştırmalı Vergiye Tabi Gelir','Comparative taxable income1.xlsx');"]
["Kelly shift schedule1.xlsx","Kelly shift schedule","Kelly Vardiya Çizelgesi","INSERT INTO excelsizeyeter_dosyalari VALUES ('','Kelly Vardiya Çizelgesi','Kelly shift schedule1.xlsx');"]
["Employee termination1.xlsx","Employee termination","Kıdem","INSERT INTO excelsizeyeter_dosyalari VALUES ('','Kıdem','Employee termination1.xlsx');"]
["Personal monthly budget spreadsheet1.xlsx","Personal monthly budget spreadsheet","Kişisel Aylık Bütçe Tablo","INSERT INTO excelsizeyeter_dosyalari VALUES ('','Kişisel Aylık Bütçe Tablo','Personal monthly budget spreadsheet1.xlsx');"]
["Personal inventory log1.xlsx","Personal inventory log","Kişisel Envanter Günlüğü","INSERT INTO excelsizeyeter_dosyalari VALUES ('','Kişisel Envanter Günlüğü','Personal inventory log1.xlsx');"]
["Personal wealth analysis1.xlsx","Personal wealth analysis","Kişisel Servet Analizi","INSERT INTO excelsizeyeter_dosyalari VALUES ('','Kişisel Servet Analizi','Personal wealth analysis1.xlsx');"]
["Bill of lading1.xlsx","Bill of lading","Konşimento","INSERT INTO excelsizeyeter_dosyalari VALUES ('','Konşimento','Bill of lading1.xlsx');"]
["Loan analysis worksheet1.xlsx","Loan analysis worksheet","Kredi Analizi Çalışma","INSERT INTO excelsizeyeter_dosyalari VALUES ('','Kredi Analizi Çalışma','Loan analysis worksheet1.xlsx');"]
["Loan calculator1.xls","Loan calculator","Kredi Hesap Makinesi","INSERT INTO excelsizeyeter_dosyalari VALUES ('','Kredi Hesap Makinesi','Loan calculator1.xls');"]
["Loan amortization schedule1.xlsx","Loan amortization schedule","Kredi İtfa Planı","INSERT INTO excelsizeyeter_dosyalari VALUES ('','Kredi İtfa Planı','Loan amortization schedule1.xlsx');"]
["Corporate analysis1.xlsx","Corporate analysis","Kurumsal Analizi","INSERT INTO excelsizeyeter_dosyalari VALUES ('','Kurumsal Analizi','Corporate analysis1.xlsx');"]
["Corporate earnings analysis1.xlsx","Corporate earnings analysis","Kurumsal Kazançlar Analizi","INSERT INTO excelsizeyeter_dosyalari VALUES ('','Kurumsal Kazançlar Analizi','Corporate earnings analysis1.xlsx');"]
["Small business valuation1.xlsx","Small business valuation","Küçük İşletme Değerleme","INSERT INTO excelsizeyeter_dosyalari VALUES ('','Küçük İşletme Değerleme','Small business valuation1.xlsx');"]
["Small business expense sheet1.xlsx","Small business expense sheet","Küçük İşletme Gideri Levha","INSERT INTO excelsizeyeter_dosyalari VALUES ('','Küçük İşletme Gideri Levha','Small business expense sheet1.xlsx');"]
["Liquidity analysis & ratios1.xlsx","Liquidity analysis & ratios","Likidite Analizi Ve Rasyoları","INSERT INTO excelsizeyeter_dosyalari VALUES ('','Likidite Analizi Ve Rasyoları','Liquidity analysis & ratios1.xlsx');"]
["Financial comparison analysis1.xlsx","Financial comparison analysis","Mali Karşılaştırma Analizi","INSERT INTO excelsizeyeter_dosyalari VALUES ('','Mali Karşılaştırma Analizi','Financial comparison analysis1.xlsx');"]
["Financial statement ratios1.xlsx","Financial statement ratios","Mali Tablo Oranları","INSERT INTO excelsizeyeter_dosyalari VALUES ('','Mali Tablo Oranları','Financial statement ratios1.xlsx');"]
["Monte Carlo dynamic economy simulation1.xlsx","Monte Carlo dynamic economy simulation","Monte Carlo Dinamik Ekonomi Simülasyon","INSERT INTO excelsizeyeter_dosyalari VALUES ('','Monte Carlo Dinamik Ekonomi Simülasyon','Monte Carlo dynamic economy simulation1.xlsx');"]
["Mortgage loan calculator1.xlsx","Mortgage loan calculator","Mortgage Kredisi Hesaplama","INSERT INTO excelsizeyeter_dosyalari VALUES ('','Mortgage Kredisi Hesaplama','Mortgage loan calculator1.xlsx');"]
["Cash flow sensitivity analysis1.xlsx","Cash flow sensitivity analysis","Nakit Akım Duyarlılık Analizi","INSERT INTO excelsizeyeter_dosyalari VALUES ('','Nakit Akım Duyarlılık Analizi','Cash flow sensitivity analysis1.xlsx');"]
["Cash flow projection1.xlsx","Cash flow projection","Nakit Akış Projeksiyonu","INSERT INTO excelsizeyeter_dosyalari VALUES ('','Nakit Akış Projeksiyonu','Cash flow projection1.xlsx');"]
["Cash flow forecast1.xlsx","Cash flow forecast","Nakit Akışı Tahmini","INSERT INTO excelsizeyeter_dosyalari VALUES ('','Nakit Akışı Tahmini','Cash flow forecast1.xlsx');"]
["Cash budget1.xlsx","Cash budget","Nakit Bütçesi","INSERT INTO excelsizeyeter_dosyalari VALUES ('','Nakit Bütçesi','Cash budget1.xlsx');"]
["Net worth summary1.xlsx","Net worth summary","Net Değer Özeti","INSERT INTO excelsizeyeter_dosyalari VALUES ('','Net Değer Özeti','Net worth summary1.xlsx');"]
["6 on 2 off rotating shift schedule1.xlsx"," on off rotating shift schedule","Off Vardiya Çizelgesi Dönen","INSERT INTO excelsizeyeter_dosyalari VALUES ('','Off Vardiya Çizelgesi Dönen','6 on 2 off rotating shift schedule1.xlsx');"]
["School athletic budget1.xlsx","School athletic budget","Okul Atletik Bütçe","INSERT INTO excelsizeyeter_dosyalari VALUES ('','Okul Atletik Bütçe','School athletic budget1.xlsx');"]
["Event planning tracker1.xlsx","Event planning tracker","Olay Planlama İzci","INSERT INTO excelsizeyeter_dosyalari VALUES ('','Olay Planlama İzci','Event planning tracker1.xlsx');"]
["Ratio analysis1.xlsx","Ratio analysis","Oran Analizi","INSERT INTO excelsizeyeter_dosyalari VALUES ('','Oran Analizi','Ratio analysis1.xlsx');"]
["Ratio analysis (detailed)1.xlsx","Ratio analysis (detailed)","Oran Analizi (Detaylı)","INSERT INTO excelsizeyeter_dosyalari VALUES ('','Oran Analizi (Detaylı)','Ratio analysis (detailed)1.xlsx');"]
["Moving average sales forecast1.xlsx","Moving average sales forecast","Ortalama Satış Tahminlerini Hareketli","INSERT INTO excelsizeyeter_dosyalari VALUES ('','Ortalama Satış Tahminlerini Hareketli','Moving average sales forecast1.xlsx');"]
["Automated Resume and Application Processing (ARAP) savings calculator1.xlsx","Automated Resume and Application Processing (ARAP) savings calculator","Otomatik Devam Ve Uygulama İşleme (Arap) Tasarruf Hesap Makinesi","INSERT INTO excelsizeyeter_dosyalari VALUES ('','Otomatik Devam Ve Uygulama İşleme (Arap) Tasarruf Hesap Makinesi','Automated Resume and Application Processing (ARAP) savings calculator1.xlsx');"]
["Disbursement journal1.xlsx","Disbursement journal","Ödeme Dergi","INSERT INTO excelsizeyeter_dosyalari VALUES ('','Ödeme Dergi','Disbursement journal1.xlsx');"]
["Payroll calculator with pay stubs1.xlsx","Payroll calculator with pay stubs","Ödeme Taslakları İle Bordro Hesap","INSERT INTO excelsizeyeter_dosyalari VALUES ('','Ödeme Taslakları İle Bordro Hesap','Payroll calculator with pay stubs1.xlsx');"]
["Homework schedule1.xlsx","Homework schedule","Ödev Programı","INSERT INTO excelsizeyeter_dosyalari VALUES ('','Ödev Programı','Homework schedule1.xlsx');"]
["Student weekly planning calendar (any year, Mon-Sun)1.xlsx","Student weekly planning calendar (any year, MonSun)","Öğrenci Haftalık Planlama Takvim (Herhangi Bir Yıl, Pztpaz)","INSERT INTO excelsizeyeter_dosyalari VALUES ('','Öğrenci Haftalık Planlama Takvim (Herhangi Bir Yıl, Pztpaz)','Student weekly planning calendar (any year, Mon-Sun)1.xlsx');"]
["Student schedule1.xlsx","Student schedule","Öğrenci Programı","INSERT INTO excelsizeyeter_dosyalari VALUES ('','Öğrenci Programı','Student schedule1.xlsx');"]
["Student calendar (Mon)1.xlsx","Student calendar (Mon)","Öğrenci Takvim (Pzt)","INSERT INTO excelsizeyeter_dosyalari VALUES ('','Öğrenci Takvim (Pzt)','Student calendar (Mon)1.xlsx');"]
["Teachers weekly schedule1.xlsx","Teachers weekly schedule","Öğretmen Haftalık Programı",{"$f":"\"INSERT INTO excelsizeyeter_dosyalari VALUES ('','\"&C177&\"','\"&A177&\"');\"","v":"INSERT INTO excelsizeyeter_dosyalari VALUES ('','Öğretmen Haftalık Programı','Teachers weekly schedule1.xlsx');"}]
["Sample PivotTable report1.xlsx","Sample PivotTable report","Örnek Tablo Raporu","INSERT INTO excelsizeyeter_dosyalari VALUES ('','Örnek Tablo Raporu','Sample PivotTable report1.xlsx');"]
["Customer profitability analysis with summary metrics chart1.xlsx","Customer profitability analysis with summary metrics chart","Özet Ölçümleri Grafiği İle Müşteri Karlılık Analizi","INSERT INTO excelsizeyeter_dosyalari VALUES ('','Özet Ölçümleri Grafiği İle Müşteri Karlılık Analizi','Customer profitability analysis with summary metrics chart1.xlsx');"]
["Parts inventory1.xlsx","Parts inventory","Parça Envanteri","INSERT INTO excelsizeyeter_dosyalari VALUES ('','Parça Envanteri','Parts inventory1.xlsx');"]
["Party planner1.xlsx","Party planner","Parti Planlayıcısı","INSERT INTO excelsizeyeter_dosyalari VALUES ('','Parti Planlayıcısı','Party planner1.xlsx');"]
["Marketing calculators1.xlsx","Marketing calculators","Pazarlama Hesap","INSERT INTO excelsizeyeter_dosyalari VALUES ('','Pazarlama Hesap','Marketing calculators1.xlsx');"]
["Marketing personnel expenses1.xlsx","Marketing personnel expenses","Pazarlama Personeli Giderleri","INSERT INTO excelsizeyeter_dosyalari VALUES ('','Pazarlama Personeli Giderleri','Marketing personnel expenses1.xlsx');"]
["Personnel activity report1.xlsx","Personnel activity report","Personel Faaliyet Raporu","INSERT INTO excelsizeyeter_dosyalari VALUES ('','Personel Faaliyet Raporu','Personnel activity report1.xlsx');"]
["Portfolio analysis1.xlsx","Portfolio analysis","Portföy Analizi","INSERT INTO excelsizeyeter_dosyalari VALUES ('','Portföy Analizi','Portfolio analysis1.xlsx');"]
["Professional services financial plan1.xlsx","Professional services financial plan","Profesyonel Hizmetler Mali Plan","INSERT INTO excelsizeyeter_dosyalari VALUES ('','Profesyonel Hizmetler Mali Plan','Professional services financial plan1.xlsx');"]
["Pro-forma balance sheet1.xlsx","Proforma balance sheet","Proforma Bilanço","INSERT INTO excelsizeyeter_dosyalari VALUES ('','Proforma Bilanço','Pro-forma balance sheet1.xlsx');"]
["Babysitter checklist with schedule1.xlsx","Babysitter checklist with schedule","Programı İle Çocuk Bakıcısı Kontrol Listesi","INSERT INTO excelsizeyeter_dosyalari VALUES ('','Programı İle Çocuk Bakıcısı Kontrol Listesi','Babysitter checklist with schedule1.xlsx');"]
["Project cost summary1.xlsx","Project cost summary","Proje Maliyet Özeti","INSERT INTO excelsizeyeter_dosyalari VALUES ('','Proje Maliyet Özeti','Project cost summary1.xlsx');"]
["Project timeline1.xlsx","Project timeline","Proje Zaman Çizelgesi","INSERT INTO excelsizeyeter_dosyalari VALUES ('','Proje Zaman Çizelgesi','Project timeline1.xlsx');"]
["8-Hour rotating shift schedule1.xlsx","Hour rotating shift schedule","Saat Dönen Vardiya Çizelgesi","INSERT INTO excelsizeyeter_dosyalari VALUES ('','Saat Dönen Vardiya Çizelgesi','8-Hour rotating shift schedule1.xlsx');"]
["Record of fixed assets with fixed declining-balance depreciation1.xlsx","Record of fixed assets with fixed decliningbalance depreciation","Sabit Azalan Dengesi Amortisman İle Duran Varlıkların Kayıt","INSERT INTO excelsizeyeter_dosyalari VALUES ('','Sabit Azalan Dengesi Amortisman İle Duran Varlıkların Kayıt','Record of fixed assets with fixed declining-balance depreciation1.xlsx');"]
["24-48 Fixed shift schedule1.xlsx"," Fixed shift schedule","Sabit Vardiya Çizelgesi","INSERT INTO excelsizeyeter_dosyalari VALUES ('','Sabit Vardiya Çizelgesi','24-48 Fixed shift schedule1.xlsx');"]
["48-96 Fixed shift schedule1.xlsx"," Fixed shift schedule","Sabit Vardiya Çizelgesi","INSERT INTO excelsizeyeter_dosyalari VALUES ('','Sabit Vardiya Çizelgesi','48-96 Fixed shift schedule1.xlsx');"]
["Industry analysis1.xlsx","Industry analysis","Sanayi Analizi",{"$f":"\"INSERT INTO excelsizeyeter_dosyalari VALUES ('','\"&C195&\"','\"&A195&\"');\"","v":"INSERT INTO excelsizeyeter_dosyalari VALUES ('','Sanayi Analizi','Industry analysis1.xlsx');"}]
["Vendor evaluation analysis1.xlsx","Vendor evaluation analysis","Satıcı Değerlendirme Analizi","INSERT INTO excelsizeyeter_dosyalari VALUES ('','Satıcı Değerlendirme Analizi','Vendor evaluation analysis1.xlsx');"]
["Vendor cost analysis1.xlsx","Vendor cost analysis","Satıcı Maliyet Analizi","INSERT INTO excelsizeyeter_dosyalari VALUES ('','Satıcı Maliyet Analizi','Vendor cost analysis1.xlsx');"]
["Cost of sales analysis1.xlsx","Cost of sales analysis","Satış Analizi Maliyeti","INSERT INTO excelsizeyeter_dosyalari VALUES ('','Satış Analizi Maliyeti','Cost of sales analysis1.xlsx');"]
["Sales activity report1.xlsx","Sales activity report","Satış Faaliyet Raporu","INSERT INTO excelsizeyeter_dosyalari VALUES ('','Satış Faaliyet Raporu','Sales activity report1.xlsx');"]
["Percent of sales income statement1.xlsx","Percent of sales income statement","Satış Gelir Tablosu Yüzde","INSERT INTO excelsizeyeter_dosyalari VALUES ('','Satış Gelir Tablosu Yüzde','Percent of sales income statement1.xlsx');"]
["Sales revenue financial dashboard1.xlsx","Sales revenue financial dashboard","Satış Gelirleri Finansal Pano","INSERT INTO excelsizeyeter_dosyalari VALUES ('','Satış Gelirleri Finansal Pano','Sales revenue financial dashboard1.xlsx');"]
["Sales planningforecasting1.xlsx","Sales planningforecasting","Satış Planningforecasting","INSERT INTO excelsizeyeter_dosyalari VALUES ('','Satış Planningforecasting','Sales planningforecasting1.xlsx');"]
["Sales report1.xlsx","Sales report","Satış Raporu","INSERT INTO excelsizeyeter_dosyalari VALUES ('','Satış Raporu','Sales report1.xlsx');"]
["Sales report app1.xlsx","Sales report app","Satış Raporu Uygulaması","INSERT INTO excelsizeyeter_dosyalari VALUES ('','Satış Raporu Uygulaması','Sales report app1.xlsx');"]
["SharePoint Server 2010 groups and permissions reference chart1.xlsx","SharePoint Server groups and permissions reference chart","Sharepoint Server Grupları Ve İzinleri Grafiği Referans","INSERT INTO excelsizeyeter_dosyalari VALUES ('','Sharepoint Server Grupları Ve İzinleri Grafiği Referans','SharePoint Server 2010 groups and permissions reference chart1.xlsx');"]
["4-10 Compressed work schedule1.xlsx"," Compressed work schedule","Sıkıştırılmış Çalışma Takvimi","INSERT INTO excelsizeyeter_dosyalari VALUES ('','Sıkıştırılmış Çalışma Takvimi','4-10 Compressed work schedule1.xlsx');"]
["5-4-9 Compressed work schedule1.xlsx"," Compressed work schedule","Sıkıştırılmış Çalışma Takvimi","INSERT INTO excelsizeyeter_dosyalari VALUES ('','Sıkıştırılmış Çalışma Takvimi','5-4-9 Compressed work schedule1.xlsx');"]
["Weekly time sheet with breaks1.xlsx","Weekly time sheet with breaks","Sonları İle Haftalık Zaman Çizelgesi","INSERT INTO excelsizeyeter_dosyalari VALUES ('','Sonları İle Haftalık Zaman Çizelgesi','Weekly time sheet with breaks1.xlsx');"]
["Weekly time sheet with breaks(2)1.xlsx","Weekly time sheet with breaks","Sonları İle Haftalık Zaman Çizelgesi ","INSERT INTO excelsizeyeter_dosyalari VALUES ('','Sonları İle Haftalık Zaman Çizelgesi ','Weekly time sheet with breaks(2)1.xlsx');"]
["Start-up capital estimate1.xlsx","Startup capital estimate","Startup Sermayesi Tahmini","INSERT INTO excelsizeyeter_dosyalari VALUES ('','Startup Sermayesi Tahmini','Start-up capital estimate1.xlsx');"]
["Stock balance record1.xlsx","Stock balance record","Stok Dengesi Rekor","INSERT INTO excelsizeyeter_dosyalari VALUES ('','Stok Dengesi Rekor','Stock balance record1.xlsx');"]
["Stock balance record2.xlsx","Stock balance record","Stok Dengesi Rekor","INSERT INTO excelsizeyeter_dosyalari VALUES ('','Stok Dengesi Rekor','Stock balance record2.xlsx');"]
["Perpetual inventory control1.xlsx","Perpetual inventory control","Sürekli Envanter Kontrolü","INSERT INTO excelsizeyeter_dosyalari VALUES ('','Sürekli Envanter Kontrolü','Perpetual inventory control1.xlsx');"]
["Company stock valuator1.xlsx","Company stock valuator","Şirket Stok Değerlemeci","INSERT INTO excelsizeyeter_dosyalari VALUES ('','Şirket Stok Değerlemeci','Company stock valuator1.xlsx');"]
["Savings estimator1.xlsx","Savings estimator","Tasarruf Tahmincisi","INSERT INTO excelsizeyeter_dosyalari VALUES ('','Tasarruf Tahmincisi','Savings estimator1.xlsx');"]
["Price elasticity analysis for one product1.xlsx","Price elasticity analysis for one product","Tek Bir Ürün İçin Fiyat Esnekliği Analizi","INSERT INTO excelsizeyeter_dosyalari VALUES ('','Tek Bir Ürün İçin Fiyat Esnekliği Analizi','Price elasticity analysis for one product1.xlsx');"]
["Quotation evaluation1.xlsx","Quotation evaluation","Teklif Değerlendirme","INSERT INTO excelsizeyeter_dosyalari VALUES ('','Teklif Değerlendirme','Quotation evaluation1.xlsx');"]
["Basic EOQ model1.xlsx","Basic EOQ model","Temel Eoq Modeli","INSERT INTO excelsizeyeter_dosyalari VALUES ('','Temel Eoq Modeli','Basic EOQ model1.xlsx');"]
["College year planner1.xlsx","College year planner","Üniversite Yıl Planlayıcısı","INSERT INTO excelsizeyeter_dosyalari VALUES ('','Üniversite Yıl Planlayıcısı','College year planner1.xlsx');"]
["Accounts receivable aging1.xlsx","Accounts receivable aging","Yaşlanma Alacak Hesapları","INSERT INTO excelsizeyeter_dosyalari VALUES ('','Yaşlanma Alacak Hesapları','Accounts receivable aging1.xlsx');"]
["Investment payback analysis1.xlsx","Investment payback analysis","Yatırım Geri Ödeme Analizi","INSERT INTO excelsizeyeter_dosyalari VALUES ('','Yatırım Geri Ödeme Analizi','Investment payback analysis1.xlsx');"]
["Investment project financial analysis1.xlsx","Investment project financial analysis","Yatırım Projesi Finansal Analiz","INSERT INTO excelsizeyeter_dosyalari VALUES ('','Yatırım Projesi Finansal Analiz','Investment project financial analysis1.xlsx');"]
["New employee record chart1.xlsx","New employee record chart","Yeni Çalışan Kayıt Çizelgesi","INSERT INTO excelsizeyeter_dosyalari VALUES ('','Yeni Çalışan Kayıt Çizelgesi','New employee record chart1.xlsx');"]
["New product sales forecast1.xlsx","New product sales forecast","Yeni Ürün Satış Tahmini","INSERT INTO excelsizeyeter_dosyalari VALUES ('','Yeni Ürün Satış Tahmini','New product sales forecast1.xlsx');"]
["New product sales and profit forecasting model1.xlsx","New product sales and profit forecasting model","Yeni Ürün Satış Ve Kar Tahmini Modeli","INSERT INTO excelsizeyeter_dosyalari VALUES ('','Yeni Ürün Satış Ve Kar Tahmini Modeli','New product sales and profit forecasting model1.xlsx');"]
["Annual direct labor analysis1.xlsx","Annual direct labor analysis","Yıllık Direkt İşçilik Analizi","INSERT INTO excelsizeyeter_dosyalari VALUES ('','Yıllık Direkt İşçilik Analizi','Annual direct labor analysis1.xlsx');"]
["Annual financial report1.xlsx","Annual financial report","Yıllık Finansal Raporu","INSERT INTO excelsizeyeter_dosyalari VALUES ('','Yıllık Finansal Raporu','Annual financial report1.xlsx');"]
["5 year business financial projections1.xlsx"," year business financial projections","Yıllık İş Finansal Projeksiyonlar","INSERT INTO excelsizeyeter_dosyalari VALUES ('','Yıllık İş Finansal Projeksiyonlar','5 year business financial projections1.xlsx');"]
["5 year business financial projections(2)1.xlsx"," year business financial projections","Yıllık İş Finansal Projeksiyonlar ","INSERT INTO excelsizeyeter_dosyalari VALUES ('','Yıllık İş Finansal Projeksiyonlar ','5 year business financial projections(2)1.xlsx');"]
["Time card1.xlsx","Time card","Zaman Kartı","INSERT INTO excelsizeyeter_dosyalari VALUES ('','Zaman Kartı','Time card1.xlsx');"]
["9 to 5 work schedule1.xlsx"," to work schedule","Zamanlama Çalışması","INSERT INTO excelsizeyeter_dosyalari VALUES ('','Zamanlama Çalışması','9 to 5 work schedule1.xlsx');"]

{"sheet":"Sheet2","index":1,"n_rows":232,"n_cols":1,"rows_kept":232,"cut":false,"hidden":false,"merged":[]}
["C:\\Users\\Kenan Çılman\\Desktop\\Excelsizeyeter Dosyaları\\tamami\\2-2 3-2 2-3 Rotating shift schedule1.xlsx"]
["C:\\Users\\Kenan Çılman\\Desktop\\Excelsizeyeter Dosyaları\\tamami\\24 month sales forecast1.xlsx"]
["C:\\Users\\Kenan Çılman\\Desktop\\Excelsizeyeter Dosyaları\\tamami\\24-48 Fixed shift schedule1.xlsx"]
["C:\\Users\\Kenan Çılman\\Desktop\\Excelsizeyeter Dosyaları\\tamami\\36 month sales forecast1.xlsx"]
["C:\\Users\\Kenan Çılman\\Desktop\\Excelsizeyeter Dosyaları\\tamami\\4-10 Compressed work schedule1.xlsx"]
["C:\\Users\\Kenan Çılman\\Desktop\\Excelsizeyeter Dosyaları\\tamami\\40 month financial projection1.xlsx"]
["C:\\Users\\Kenan Çılman\\Desktop\\Excelsizeyeter Dosyaları\\tamami\\401(k) calculator1.xlsx"]
["C:\\Users\\Kenan Çılman\\Desktop\\Excelsizeyeter Dosyaları\\tamami\\48-96 Fixed shift schedule1.xlsx"]
["C:\\Users\\Kenan Çılman\\Desktop\\Excelsizeyeter Dosyaları\\tamami\\5 year business financial projections(2)1.xlsx"]
["C:\\Users\\Kenan Çılman\\Desktop\\Excelsizeyeter Dosyaları\\tamami\\5 year business financial projections1.xlsx"]
["C:\\Users\\Kenan Çılman\\Desktop\\Excelsizeyeter Dosyaları\\tamami\\5-4-9 Compressed work schedule1.xlsx"]
["C:\\Users\\Kenan Çılman\\Desktop\\Excelsizeyeter Dosyaları\\tamami\\52 week sales record1.xlsx"]
["C:\\Users\\Kenan Çılman\\Desktop\\Excelsizeyeter Dosyaları\\tamami\\6 on 2 off rotating shift schedule1.xlsx"]
["C:\\Users\\Kenan Çılman\\Desktop\\Excelsizeyeter Dosyaları\\tamami\\8-Hour rotating shift schedule1.xlsx"]
["C:\\Users\\Kenan Çılman\\Desktop\\Excelsizeyeter Dosyaları\\tamami\\9 to 5 work schedule1.xlsx"]
["C:\\Users\\Kenan Çılman\\Desktop\\Excelsizeyeter Dosyaları\\tamami\\Academic calendar (any year)1.xlsx"]
["C:\\Users\\Kenan Çılman\\Desktop\\Excelsizeyeter Dosyaları\\tamami\\Accounts receivable aging report1.xlsx"]
["C:\\Users\\Kenan Çılman\\Desktop\\Excelsizeyeter Dosyaları\\tamami\\Accounts receivable aging1.xlsx"]
["C:\\Users\\Kenan Çılman\\Desktop\\Excelsizeyeter Dosyaları\\tamami\\Activity ratios report1.xlsx"]
["C:\\Users\\Kenan Çılman\\Desktop\\Excelsizeyeter Dosyaları\\tamami\\Adjustable meeting agenda1.xlsx"]
["C:\\Users\\Kenan Çılman\\Desktop\\Excelsizeyeter Dosyaları\\tamami\\Annual direct labor analysis1.xlsx"]
["C:\\Users\\Kenan Çılman\\Desktop\\Excelsizeyeter Dosyaları\\tamami\\Annual financial report1.xlsx"]
["C:\\Users\\Kenan Çılman\\Desktop\\Excelsizeyeter Dosyaları\\tamami\\Annuity investment calculator1.xlsx"]
["C:\\Users\\Kenan Çılman\\Desktop\\Excelsizeyeter Dosyaları\\tamami\\Approval to hire request1.xlsx"]
["C:\\Users\\Kenan Çılman\\Desktop\\Excelsizeyeter Dosyaları\\tamami\\Assignment schedule1.xlsx"]
["C:\\Users\\Kenan Çılman\\Desktop\\Excelsizeyeter Dosyaları\\tamami\\Automated Resume and Application Processing (ARAP) savings calculator1.xlsx"]
["C:\\Users\\Kenan Çılman\\Desktop\\Excelsizeyeter Dosyaları\\tamami\\Babysitter checklist with schedule1.xlsx"]
["C:\\Users\\Kenan Çılman\\Desktop\\Excelsizeyeter Dosyaları\\tamami\\Backorder control1.xlsx"]
["C:\\Users\\Kenan Çılman\\Desktop\\Excelsizeyeter Dosyaları\\tamami\\Balance sheet1.xlsx"]
["C:\\Users\\Kenan Çılman\\Desktop\\Excelsizeyeter Dosyaları\\tamami\\Balloon loan payment calculator1.xlsx"]
["C:\\Users\\Kenan Çılman\\Desktop\\Excelsizeyeter Dosyaları\\tamami\\Basic EOQ model1.xlsx"]
["C:\\Users\\Kenan Çılman\\Desktop\\Excelsizeyeter Dosyaları\\tamami\\Bill of lading1.xlsx"]
["C:\\Users\\Kenan Çılman\\Desktop\\Excelsizeyeter Dosyaları\\tamami\\Biweekly time sheet with sick leave and vacation(2)1.xlsx"]
["C:\\Users\\Kenan Çılman\\Desktop\\Excelsizeyeter Dosyaları\\tamami\\Biweekly time sheet with sick leave and vacation1.xlsx"]
["C:\\Users\\Kenan Çılman\\Desktop\\Excelsizeyeter Dosyaları\\tamami\\Biweekly time sheet1.xlsx"]
["C:\\Users\\Kenan Çılman\\Desktop\\Excelsizeyeter Dosyaları\\tamami\\Break-even analysis(2)1.xlsx"]
["C:\\Users\\Kenan Çılman\\Desktop\\Excelsizeyeter Dosyaları\\tamami\\Break-even analysis(3)1.xlsx"]
["C:\\Users\\Kenan Çılman\\Desktop\\Excelsizeyeter Dosyaları\\tamami\\Break-even analysis1.xlsx"]
["C:\\Users\\Kenan Çılman\\Desktop\\Excelsizeyeter Dosyaları\\tamami\\Break-even chart1.xlsx"]
["C:\\Users\\Kenan Çılman\\Desktop\\Excelsizeyeter Dosyaları\\tamami\\Breakeven analysis with charts1.xlsx"]
["C:\\Users\\Kenan Çılman\\Desktop\\Excelsizeyeter Dosyaları\\tamami\\Budget for fundraiser event1.xlsx"]
["C:\\Users\\Kenan Çılman\\Desktop\\Excelsizeyeter Dosyaları\\tamami\\Budget summary report1.xlsx"]
["C:\\Users\\Kenan Çılman\\Desktop\\Excelsizeyeter Dosyaları\\tamami\\Business expense budget1.xlsx"]
["C:\\Users\\Kenan Çılman\\Desktop\\Excelsizeyeter Dosyaları\\tamami\\Business loan approval analysis (loan tree)1.xlsx"]
["C:\\Users\\Kenan Çılman\\Desktop\\Excelsizeyeter Dosyaları\\tamami\\Business model calculator1.xlsx"]
["C:\\Users\\Kenan Çılman\\Desktop\\Excelsizeyeter Dosyaları\\tamami\\Business plan sample1.xlsx"]
["C:\\Users\\Kenan Çılman\\Desktop\\Excelsizeyeter Dosyaları\\tamami\\Business unit financial plan1.xlsx"]
["C:\\Users\\Kenan Çılman\\Desktop\\Excelsizeyeter Dosyaları\\tamami\\Calorie amortization schedule1.xlsx"]
["C:\\Users\\Kenan Çılman\\Desktop\\Excelsizeyeter Dosyaları\\tamami\\Capitalization table1.xlsx"]
["C:\\Users\\Kenan Çılman\\Desktop\\Excelsizeyeter Dosyaları\\tamami\\Car lease vs.xlsx"]
["C:\\Users\\Kenan Çılman\\Desktop\\Excelsizeyeter Dosyaları\\tamami\\Cash budget1.xlsx"]
["C:\\Users\\Kenan Çılman\\Desktop\\Excelsizeyeter Dosyaları\\tamami\\Cash flow forecast1.xlsx"]
["C:\\Users\\Kenan Çılman\\Desktop\\Excelsizeyeter Dosyaları\\tamami\\Cash flow projection1.xlsx"]
["C:\\Users\\Kenan Çılman\\Desktop\\Excelsizeyeter Dosyaları\\tamami\\Cash flow sensitivity analysis1.xlsx"]
["C:\\Users\\Kenan Çılman\\Desktop\\Excelsizeyeter Dosyaları\\tamami\\Channel partner scorecard1.xlsx"]
["C:\\Users\\Kenan Çılman\\Desktop\\Excelsizeyeter Dosyaları\\tamami\\Chore payment schedule1.xlsx"]
["C:\\Users\\Kenan Çılman\\Desktop\\Excelsizeyeter Dosyaları\\tamami\\College year planner1.xlsx"]
["C:\\Users\\Kenan Çılman\\Desktop\\Excelsizeyeter Dosyaları\\tamami\\Company stock valuator1.xlsx"]
["C:\\Users\\Kenan Çılman\\Desktop\\Excelsizeyeter Dosyaları\\tamami\\Comparative balance sheet1.xlsx"]
["C:\\Users\\Kenan Çılman\\Desktop\\Excelsizeyeter Dosyaları\\tamami\\Comparative contribution analysis1.xlsx"]
["C:\\Users\\Kenan Çılman\\Desktop\\Excelsizeyeter Dosyaları\\tamami\\Comparative earnings analysis1.xlsx"]
["C:\\Users\\Kenan Çılman\\Desktop\\Excelsizeyeter Dosyaları\\tamami\\Comparative taxable income1.xlsx"]
["C:\\Users\\Kenan Çılman\\Desktop\\Excelsizeyeter Dosyaları\\tamami\\Comprehensive ratio analysis1.xlsx"]
["C:\\Users\\Kenan Çılman\\Desktop\\Excelsizeyeter Dosyaları\\tamami\\Consulting pricing worksheet - FeePricing Analysis1.xlsx"]
["C:\\Users\\Kenan Çılman\\Desktop\\Excelsizeyeter Dosyaları\\tamami\\Continental rotating shift schedule1.xlsx"]
["C:\\Users\\Kenan Çılman\\Desktop\\Excelsizeyeter Dosyaları\\tamami\\Corporate analysis1.xlsx"]
["C:\\Users\\Kenan Çılman\\Desktop\\Excelsizeyeter Dosyaları\\tamami\\Corporate earnings analysis1.xlsx"]
["C:\\Users\\Kenan Çılman\\Desktop\\Excelsizeyeter Dosyaları\\tamami\\Cost of sales analysis1.xlsx"]
["C:\\Users\\Kenan Çılman\\Desktop\\Excelsizeyeter Dosyaları\\tamami\\Customer profitability analysis with summary metrics chart1.xlsx"]
["C:\\Users\\Kenan Çılman\\Desktop\\Excelsizeyeter Dosyaları\\tamami\\Daily appointment calendar1.xlsx"]
["C:\\Users\\Kenan Çılman\\Desktop\\Excelsizeyeter Dosyaları\\tamami\\Daily infant schedule and weight tracker1.xlsx"]
["C:\\Users\\Kenan Çılman\\Desktop\\Excelsizeyeter Dosyaları\\tamami\\Daily sales report1.xlsx"]
["C:\\Users\\Kenan Çılman\\Desktop\\Excelsizeyeter Dosyaları\\tamami\\Daily schedule1.xlsx"]
["C:\\Users\\Kenan Çılman\\Desktop\\Excelsizeyeter Dosyaları\\tamami\\Daily time sheet - services rendered1.xlsx"]
["C:\\Users\\Kenan Çılman\\Desktop\\Excelsizeyeter Dosyaları\\tamami\\Daily time sheet1.xlsx"]
["C:\\Users\\Kenan Çılman\\Desktop\\Excelsizeyeter Dosyaları\\tamami\\Daily work schedule1.xlsx"]
["C:\\Users\\Kenan Çılman\\Desktop\\Excelsizeyeter Dosyaları\\tamami\\Dashboard1.xlsx"]
["C:\\Users\\Kenan Çılman\\Desktop\\Excelsizeyeter Dosyaları\\tamami\\DDNNOO rotating shift schedule1.xlsx"]
["C:\\Users\\Kenan Çılman\\Desktop\\Excelsizeyeter Dosyaları\\tamami\\Deferred tax rate calculator1.xlsx"]
["C:\\Users\\Kenan Çılman\\Desktop\\Excelsizeyeter Dosyaları\\tamami\\Depreciation methods comparison1.xlsx"]
["C:\\Users\\Kenan Çılman\\Desktop\\Excelsizeyeter Dosyaları\\tamami\\Detailed revenue plan1.xlsx"]
["C:\\Users\\Kenan Çılman\\Desktop\\Excelsizeyeter Dosyaları\\tamami\\Detailed sales forecast1.xlsx"]
["C:\\Users\\Kenan Çılman\\Desktop\\Excelsizeyeter Dosyaları\\tamami\\Detailed sales pipeline management1.xlsx"]
["C:\\Users\\Kenan Çılman\\Desktop\\Excelsizeyeter Dosyaları\\tamami\\Direct marketing analysis1.xlsx"]
["C:\\Users\\Kenan Çılman\\Desktop\\Excelsizeyeter Dosyaları\\tamami\\Disbursement journal1.xlsx"]
["C:\\Users\\Kenan Çılman\\Desktop\\Excelsizeyeter Dosyaları\\tamami\\Disbursement report1.xlsx"]
["C:\\Users\\Kenan Çılman\\Desktop\\Excelsizeyeter Dosyaları\\tamami\\Discounted cash flow model1.xlsx"]
["C:\\Users\\Kenan Çılman\\Desktop\\Excelsizeyeter Dosyaları\\tamami\\DNO rotating sift schedule1.xlsx"]
["C:\\Users\\Kenan Çılman\\Desktop\\Excelsizeyeter Dosyaları\\tamami\\Dupont rotating shift schedule1.xlsx"]
["C:\\Users\\Kenan Çılman\\Desktop\\Excelsizeyeter Dosyaları\\tamami\\Educational credits and reimbursement tracker1.xlsx"]
["C:\\Users\\Kenan Çılman\\Desktop\\Excelsizeyeter Dosyaları\\tamami\\Employee absence schedule1.xlsx"]
["C:\\Users\\Kenan Çılman\\Desktop\\Excelsizeyeter Dosyaları\\tamami\\Employee absence tracker1.xlsx"]
["C:\\Users\\Kenan Çılman\\Desktop\\Excelsizeyeter Dosyaları\\tamami\\Employee attendance tracker1.xlsx"]
["C:\\Users\\Kenan Çılman\\Desktop\\Excelsizeyeter Dosyaları\\tamami\\Employee change record1.xlsx"]
["C:\\Users\\Kenan Çılman\\Desktop\\Excelsizeyeter Dosyaları\\tamami\\Employee equipment inventory1.xlsx"]
["C:\\Users\\Kenan Çılman\\Desktop\\Excelsizeyeter Dosyaları\\tamami\\Employee orientation1.xlsx"]
["C:\\Users\\Kenan Çılman\\Desktop\\Excelsizeyeter Dosyaları\\tamami\\Employee performance review1.xlsx"]
["C:\\Users\\Kenan Çılman\\Desktop\\Excelsizeyeter Dosyaları\\tamami\\Employee profile.xlsx"]
["C:\\Users\\Kenan Çılman\\Desktop\\Excelsizeyeter Dosyaları\\tamami\\Employee self-evaluation1.xlsx"]
["C:\\Users\\Kenan Çılman\\Desktop\\Excelsizeyeter Dosyaları\\tamami\\Employee shift schedule(2)1.xlsx"]
["C:\\Users\\Kenan Çılman\\Desktop\\Excelsizeyeter Dosyaları\\tamami\\Employee shift schedule(3)1.xlsx"]
["C:\\Users\\Kenan Çılman\\Desktop\\Excelsizeyeter Dosyaları\\tamami\\Employee shift schedule1.xlsx"]
["C:\\Users\\Kenan Çılman\\Desktop\\Excelsizeyeter Dosyaları\\tamami\\Employee termination1.xlsx"]
["C:\\Users\\Kenan Çılman\\Desktop\\Excelsizeyeter Dosyaları\\tamami\\Employee time sheet (weekly, monthly, yearly)1.xlsx"]
["C:\\Users\\Kenan Çılman\\Desktop\\Excelsizeyeter Dosyaları\\tamami\\Employee timecard (daily, weekly, monthly, and yearly)1.xlsx"]
["C:\\Users\\Kenan Çılman\\Desktop\\Excelsizeyeter Dosyaları\\tamami\\Employee timecard1.xlsx"]
["C:\\Users\\Kenan Çılman\\Desktop\\Excelsizeyeter Dosyaları\\tamami\\Employment candidate organizer and scoring1.xlsx"]
["C:\\Users\\Kenan Çılman\\Desktop\\Excelsizeyeter Dosyaları\\tamami\\Employment opportunity tracking and scoring1.xlsx"]
["C:\\Users\\Kenan Çılman\\Desktop\\Excelsizeyeter Dosyaları\\tamami\\Equipment inventory and depreciation schedule1.xlsx"]
["C:\\Users\\Kenan Çılman\\Desktop\\Excelsizeyeter Dosyaları\\tamami\\Equipment inventory list1.xlsx"]
["C:\\Users\\Kenan Çılman\\Desktop\\Excelsizeyeter Dosyaları\\tamami\\Equipment list1.xlsm"]
["C:\\Users\\Kenan Çılman\\Desktop\\Excelsizeyeter Dosyaları\\tamami\\Event planning tracker1.xlsx"]
["C:\\Users\\Kenan Çılman\\Desktop\\Excelsizeyeter Dosyaları\\tamami\\Event schedule1.xlsx"]
["C:\\Users\\Kenan Çılman\\Desktop\\Excelsizeyeter Dosyaları\\tamami\\Expected commercial value calculator - product profitability analysis1.xlsx"]
["C:\\Users\\Kenan Çılman\\Desktop\\Excelsizeyeter Dosyaları\\tamami\\Finance charge (Simple Blue design)1.xlsx"]
["C:\\Users\\Kenan Çılman\\Desktop\\Excelsizeyeter Dosyaları\\tamami\\Finance charge (Simple Lines design)1.xlsx"]
["C:\\Users\\Kenan Çılman\\Desktop\\Excelsizeyeter Dosyaları\\tamami\\Financial calculator1.xlsx"]
["C:\\Users\\Kenan Çılman\\Desktop\\Excelsizeyeter Dosyaları\\tamami\\Financial comparison analysis1.xlsx"]
["C:\\Users\\Kenan Çılman\\Desktop\\Excelsizeyeter Dosyaları\\tamami\\Financial forecast analysis (8 years)1.xlsx"]
["C:\\Users\\Kenan Çılman\\Desktop\\Excelsizeyeter Dosyaları\\tamami\\Financial statement ratios1.xlsx"]
["C:\\Users\\Kenan Çılman\\Desktop\\Excelsizeyeter Dosyaları\\tamami\\Financial toys1.xlsx"]
["C:\\Users\\Kenan Çılman\\Desktop\\Excelsizeyeter Dosyaları\\tamami\\Fixed asset record with straight line depreciation1.xlsx"]
["C:\\Users\\Kenan Çılman\\Desktop\\Excelsizeyeter Dosyaları\\tamami\\Flexible balance sheet1.xlsx"]
["C:\\Users\\Kenan Çılman\\Desktop\\Excelsizeyeter Dosyaları\\tamami\\Garden planner1.xlsx"]
["C:\\Users\\Kenan Çılman\\Desktop\\Excelsizeyeter Dosyaları\\tamami\\General ledger1.xlsx"]
["C:\\Users\\Kenan Çılman\\Desktop\\Excelsizeyeter Dosyaları\\tamami\\Headcount analysis1.xlsx"]
["C:\\Users\\Kenan Çılman\\Desktop\\Excelsizeyeter Dosyaları\\tamami\\Home contents inventory list1.xlsx"]
["C:\\Users\\Kenan Çılman\\Desktop\\Excelsizeyeter Dosyaları\\tamami\\Home inventory1.xlsx"]
["C:\\Users\\Kenan Çılman\\Desktop\\Excelsizeyeter Dosyaları\\tamami\\Homework schedule1.xlsx"]
["C:\\Users\\Kenan Çılman\\Desktop\\Excelsizeyeter Dosyaları\\tamami\\Human Resources (HR) dashboard.xlsx"]
["C:\\Users\\Kenan Çılman\\Desktop\\Excelsizeyeter Dosyaları\\tamami\\Income statement 1 year1.xlsx"]
["C:\\Users\\Kenan Çılman\\Desktop\\Excelsizeyeter Dosyaları\\tamami\\Income statement1.xlsx"]
["C:\\Users\\Kenan Çılman\\Desktop\\Excelsizeyeter Dosyaları\\tamami\\Industry analysis1.xlsx"]
["C:\\Users\\Kenan Çılman\\Desktop\\Excelsizeyeter Dosyaları\\tamami\\Inventory list(2)1.xlsx"]
["C:\\Users\\Kenan Çılman\\Desktop\\Excelsizeyeter Dosyaları\\tamami\\Inventory of home contents1.xlsx"]
["C:\\Users\\Kenan Çılman\\Desktop\\Excelsizeyeter Dosyaları\\tamami\\Investment payback analysis1.xlsx"]
["C:\\Users\\Kenan Çılman\\Desktop\\Excelsizeyeter Dosyaları\\tamami\\Investment project financial analysis1.xlsx"]
["C:\\Users\\Kenan Çılman\\Desktop\\Excelsizeyeter Dosyaları\\tamami\\Invoice with finance charge (simple)1.xlsx"]
["C:\\Users\\Kenan Çılman\\Desktop\\Excelsizeyeter Dosyaları\\tamami\\Invoice with finance charge1.xlsx"]
["C:\\Users\\Kenan Çılman\\Desktop\\Excelsizeyeter Dosyaları\\tamami\\Kelly shift schedule1.xlsx"]
["C:\\Users\\Kenan Çılman\\Desktop\\Excelsizeyeter Dosyaları\\tamami\\Liquidity analysis & ratios1.xlsx"]
["C:\\Users\\Kenan Çılman\\Desktop\\Excelsizeyeter Dosyaları\\tamami\\Loan amortization schedule1.xlsx"]
["C:\\Users\\Kenan Çılman\\Desktop\\Excelsizeyeter Dosyaları\\tamami\\Loan analysis worksheet1.xlsx"]
["C:\\Users\\Kenan Çılman\\Desktop\\Excelsizeyeter Dosyaları\\tamami\\Loan calculator1.xls"]
["C:\\Users\\Kenan Çılman\\Desktop\\Excelsizeyeter Dosyaları\\tamami\\Macroeconomic model of a national economy1.xlsx"]
["C:\\Users\\Kenan Çılman\\Desktop\\Excelsizeyeter Dosyaları\\tamami\\Marketing calculators1.xlsx"]
["C:\\Users\\Kenan Çılman\\Desktop\\Excelsizeyeter Dosyaları\\tamami\\Marketing personnel expenses1.xlsx"]
["C:\\Users\\Kenan Çılman\\Desktop\\Excelsizeyeter Dosyaları\\tamami\\Medication schedule1.xlsx"]
["C:\\Users\\Kenan Çılman\\Desktop\\Excelsizeyeter Dosyaları\\tamami\\Monte Carlo dynamic economy simulation1.xlsx"]
["C:\\Users\\Kenan Çılman\\Desktop\\Excelsizeyeter Dosyaları\\tamami\\Monthly bank reconciliation1.xlsx"]
["C:\\Users\\Kenan Çılman\\Desktop\\Excelsizeyeter Dosyaları\\tamami\\Monthly budget plan and analysis1.xlsx"]
["C:\\Users\\Kenan Çılman\\Desktop\\Excelsizeyeter Dosyaları\\tamami\\Monthly household expenses1.xlsx"]
["C:\\Users\\Kenan Çılman\\Desktop\\Excelsizeyeter Dosyaları\\tamami\\Monthly inventory and gross profit tracker1.xlsx"]
["C:\\Users\\Kenan Çılman\\Desktop\\Excelsizeyeter Dosyaları\\tamami\\Monthly sales projections1.xlsx"]
["C:\\Users\\Kenan Çılman\\Desktop\\Excelsizeyeter Dosyaları\\tamami\\Mortgage loan calculator1.xlsx"]
["C:\\Users\\Kenan Çılman\\Desktop\\Excelsizeyeter Dosyaları\\tamami\\Moving average sales forecast1.xlsx"]
["C:\\Users\\Kenan Çılman\\Desktop\\Excelsizeyeter Dosyaları\\tamami\\Net worth summary1.xlsx"]
["C:\\Users\\Kenan Çılman\\Desktop\\Excelsizeyeter Dosyaları\\tamami\\New employee record chart1.xlsx"]
["C:\\Users\\Kenan Çılman\\Desktop\\Excelsizeyeter Dosyaları\\tamami\\New product sales and profit forecasting model1.xlsx"]
["C:\\Users\\Kenan Çılman\\Desktop\\Excelsizeyeter Dosyaları\\tamami\\New product sales forecast1.xlsx"]
["C:\\Users\\Kenan Çılman\\Desktop\\Excelsizeyeter Dosyaları\\tamami\\Parts inventory1.xlsx"]
["C:\\Users\\Kenan Çılman\\Desktop\\Excelsizeyeter Dosyaları\\tamami\\Party planner1.xlsx"]
["C:\\Users\\Kenan Çılman\\Desktop\\Excelsizeyeter Dosyaları\\tamami\\Payroll calculator with pay stubs1.xlsx"]
["C:\\Users\\Kenan Çılman\\Desktop\\Excelsizeyeter Dosyaları\\tamami\\Payroll calculator1.xlsx"]
["C:\\Users\\Kenan Çılman\\Desktop\\Excelsizeyeter Dosyaları\\tamami\\Percent of sales income statement1.xlsx"]
["C:\\Users\\Kenan Çılman\\Desktop\\Excelsizeyeter Dosyaları\\tamami\\Perpetual inventory control1.xlsx"]
["C:\\Users\\Kenan Çılman\\Desktop\\Excelsizeyeter Dosyaları\\tamami\\Personal inventory log1.xlsx"]
["C:\\Users\\Kenan Çılman\\Desktop\\Excelsizeyeter Dosyaları\\tamami\\Personal monthly budget spreadsheet1.xlsx"]
["C:\\Users\\Kenan Çılman\\Desktop\\Excelsizeyeter Dosyaları\\tamami\\Personal wealth analysis1.xlsx"]
["C:\\Users\\Kenan Çılman\\Desktop\\Excelsizeyeter Dosyaları\\tamami\\Personnel activity report1.xlsx"]
["C:\\Users\\Kenan Çılman\\Desktop\\Excelsizeyeter Dosyaları\\tamami\\Portfolio analysis1.xlsx"]
["C:\\Users\\Kenan Çılman\\Desktop\\Excelsizeyeter Dosyaları\\tamami\\Pregnancy calendar1.xlsx"]
["C:\\Users\\Kenan Çılman\\Desktop\\Excelsizeyeter Dosyaları\\tamami\\Present value calculator of mixed cash flow streams1.xlsx"]
["C:\\Users\\Kenan Çılman\\Desktop\\Excelsizeyeter Dosyaları\\tamami\\Price elasticity analysis for one product1.xlsx"]
["C:\\Users\\Kenan Çılman\\Desktop\\Excelsizeyeter Dosyaları\\tamami\\Price elasticity for multiple interacting products1.xlsx"]
["C:\\Users\\Kenan Çılman\\Desktop\\Excelsizeyeter Dosyaları\\tamami\\Price line sales projections1.xlsx"]
["C:\\Users\\Kenan Çılman\\Desktop\\Excelsizeyeter Dosyaları\\tamami\\Pro-forma balance sheet1.xlsx"]
["C:\\Users\\Kenan Çılman\\Desktop\\Excelsizeyeter Dosyaları\\tamami\\Professional services financial plan1.xlsx"]
["C:\\Users\\Kenan Çılman\\Desktop\\Excelsizeyeter Dosyaları\\tamami\\Profit loss statement1.xlsx"]
["C:\\Users\\Kenan Çılman\\Desktop\\Excelsizeyeter Dosyaları\\tamami\\Profitability ratios1.xlsx"]
["C:\\Users\\Kenan Çılman\\Desktop\\Excelsizeyeter Dosyaları\\tamami\\Project cost summary1.xlsx"]
["C:\\Users\\Kenan Çılman\\Desktop\\Excelsizeyeter Dosyaları\\tamami\\Project plan for law firms1.xlsx"]
["C:\\Users\\Kenan Çılman\\Desktop\\Excelsizeyeter Dosyaları\\tamami\\Project timeline1.xlsx"]
["C:\\Users\\Kenan Çılman\\Desktop\\Excelsizeyeter Dosyaları\\tamami\\Quarterly budget analysis1.xlsx"]
["C:\\Users\\Kenan Çılman\\Desktop\\Excelsizeyeter Dosyaları\\tamami\\Quarterly cash flow projection1.xlsx"]
["C:\\Users\\Kenan Çılman\\Desktop\\Excelsizeyeter Dosyaları\\tamami\\Quotation evaluation1.xlsx"]
["C:\\Users\\Kenan Çılman\\Desktop\\Excelsizeyeter Dosyaları\\tamami\\Ratio analysis (detailed)1.xlsx"]
["C:\\Users\\Kenan Çılman\\Desktop\\Excelsizeyeter Dosyaları\\tamami\\Ratio analysis1.xlsx"]
["C:\\Users\\Kenan Çılman\\Desktop\\Excelsizeyeter Dosyaları\\tamami\\Receiving report1.xlsx"]
["C:\\Users\\Kenan Çılman\\Desktop\\Excelsizeyeter Dosyaları\\tamami\\Record of fixed assets with fixed declining-balance depreciation1.xlsx"]
["C:\\Users\\Kenan Çılman\\Desktop\\Excelsizeyeter Dosyaları\\tamami\\Retirement financial planner1.xlsx"]
["C:\\Users\\Kenan Çılman\\Desktop\\Excelsizeyeter Dosyaları\\tamami\\Revenue forecast(2)1.xlsx"]
["C:\\Users\\Kenan Çılman\\Desktop\\Excelsizeyeter Dosyaları\\tamami\\Revenue forecast1.xlsx"]
["C:\\Users\\Kenan Çılman\\Desktop\\Excelsizeyeter Dosyaları\\tamami\\Sales activity report1.xlsx"]
["C:\\Users\\Kenan Çılman\\Desktop\\Excelsizeyeter Dosyaları\\tamami\\Sales planningforecasting1.xlsx"]
["C:\\Users\\Kenan Çılman\\Desktop\\Excelsizeyeter Dosyaları\\tamami\\Sales report app1.xlsx"]
["C:\\Users\\Kenan Çılman\\Desktop\\Excelsizeyeter Dosyaları\\tamami\\Sales report1.xlsx"]
["C:\\Users\\Kenan Çılman\\Desktop\\Excelsizeyeter Dosyaları\\tamami\\Sales revenue financial dashboard1.xlsx"]
["C:\\Users\\Kenan Çılman\\Desktop\\Excelsizeyeter Dosyaları\\tamami\\Sales seasonality by month1.xlsx"]
["C:\\Users\\Kenan Çılman\\Desktop\\Excelsizeyeter Dosyaları\\tamami\\Sample PivotTable report1.xlsx"]
["C:\\Users\\Kenan Çılman\\Desktop\\Excelsizeyeter Dosyaları\\tamami\\Savings estimator1.xlsx"]
["C:\\Users\\Kenan Çılman\\Desktop\\Excelsizeyeter Dosyaları\\tamami\\School athletic budget1.xlsx"]
["C:\\Users\\Kenan Çılman\\Desktop\\Excelsizeyeter Dosyaları\\tamami\\SharePoint Server 2010 groups and permissions reference chart1.xlsx"]
["C:\\Users\\Kenan Çılman\\Desktop\\Excelsizeyeter Dosyaları\\tamami\\Shipping order1.xlsx"]
["C:\\Users\\Kenan Çılman\\Desktop\\Excelsizeyeter Dosyaları\\tamami\\Simple expense budget1.xlsx"]
["C:\\Users\\Kenan Çılman\\Desktop\\Excelsizeyeter Dosyaları\\tamami\\Simple monthly budget1.xlsx"]
["C:\\Users\\Kenan Çılman\\Desktop\\Excelsizeyeter Dosyaları\\tamami\\Small business expense sheet1.xlsx"]
["C:\\Users\\Kenan Çılman\\Desktop\\Excelsizeyeter Dosyaları\\tamami\\Small business valuation1.xlsx"]
["C:\\Users\\Kenan Çılman\\Desktop\\Excelsizeyeter Dosyaları\\tamami\\Start-up capital estimate1.xlsx"]
["C:\\Users\\Kenan Çılman\\Desktop\\Excelsizeyeter Dosyaları\\tamami\\Startup expenses1.xlsx"]
["C:\\Users\\Kenan Çılman\\Desktop\\Excelsizeyeter Dosyaları\\tamami\\Startup sales plan1.xlsx"]
["C:\\Users\\Kenan Çılman\\Desktop\\Excelsizeyeter Dosyaları\\tamami\\Stock balance record1.xlsx"]
["C:\\Users\\Kenan Çılman\\Desktop\\Excelsizeyeter Dosyaları\\tamami\\Stock balance record2.xlsx"]
["C:\\Users\\Kenan Çılman\\Desktop\\Excelsizeyeter Dosyaları\\tamami\\Student calendar (Mon)1.xlsx"]
["C:\\Users\\Kenan Çılman\\Desktop\\Excelsizeyeter Dosyaları\\tamami\\Student schedule1.xlsx"]
["C:\\Users\\Kenan Çılman\\Desktop\\Excelsizeyeter Dosyaları\\tamami\\Student weekly planning calendar (any year, Mon-Sun)1.xlsx"]
["C:\\Users\\Kenan Çılman\\Desktop\\Excelsizeyeter Dosyaları\\tamami\\Teacher's weekly schedule1.xlsx"]
["C:\\Users\\Kenan Çılman\\Desktop\\Excelsizeyeter Dosyaları\\tamami\\Time card1.xlsx"]
["C:\\Users\\Kenan Çılman\\Desktop\\Excelsizeyeter Dosyaları\\tamami\\Vehicle loan payment calculator1.xlsx"]
["C:\\Users\\Kenan Çılman\\Desktop\\Excelsizeyeter Dosyaları\\tamami\\Vendor cost analysis1.xlsx"]
["C:\\Users\\Kenan Çılman\\Desktop\\Excelsizeyeter Dosyaları\\tamami\\Vendor evaluation analysis1.xlsx"]
["C:\\Users\\Kenan Çılman\\Desktop\\Excelsizeyeter Dosyaları\\tamami\\Warehouse inventory1.xlsm"]
["C:\\Users\\Kenan Çılman\\Desktop\\Excelsizeyeter Dosyaları\\tamami\\Weekly chore schedule1.xlsx"]
["C:\\Users\\Kenan Çılman\\Desktop\\Excelsizeyeter Dosyaları\\tamami\\Weekly class schedule1.xlsx"]
["C:\\Users\\Kenan Çılman\\Desktop\\Excelsizeyeter Dosyaları\\tamami\\Weekly college schedule1.xlsm"]
["C:\\Users\\Kenan Çılman\\Desktop\\Excelsizeyeter Dosyaları\\tamami\\Weekly employee shift schedule1.xlsx"]
["C:\\Users\\Kenan Çılman\\Desktop\\Excelsizeyeter Dosyaları\\tamami\\Weekly time sheet (8 12 x 11, landscape)1.xlsx"]
["C:\\Users\\Kenan Çılman\\Desktop\\Excelsizeyeter Dosyaları\\tamami\\Weekly time sheet (8 12 x 11, portrait)1.xlsx"]
["C:\\Users\\Kenan Çılman\\Desktop\\Excelsizeyeter Dosyaları\\tamami\\Weekly time sheet with breaks(2)1.xlsx"]
["C:\\Users\\Kenan Çılman\\Desktop\\Excelsizeyeter Dosyaları\\tamami\\Weekly time sheet with breaks1.xlsx"]
["C:\\Users\\Kenan Çılman\\Desktop\\Excelsizeyeter Dosyaları\\tamami\\______LİSTE.xlsm"]
["C:\\Users\\Kenan Çılman\\Desktop\\Excelsizeyeter Dosyaları\\tamami\\~$______LİSTE.xlsm"]